Cogmind - Beta 13 @@@ ROGUE MODE // 2024.05.03 @ 17:47:53 Player: Exceptionally Mediocre Result: Destroyed by as-53002 with Assembled Heavy Rifle Performance ------------- Evolutions (0) 0 Regions Visited (2) 400 Robots Destroyed (5) 25 Value Destroyed (70) 70 Prototype IDs (0) 0 Alien Tech Used (0) 0 Bonus (0) 0 TOTAL SCORE: 495 Bonus ------- None Cogmind --------- Core Integrity 0/250 Matter 160/300 Energy 73/100 System Corruption 1% Temperature Cool (20) Movement Core (400) Ox7 Location -10/Mines Parts ------- > --- POWER (1) -------- (None) > --- PROPULSION (2) --- (None) > --- UTILITY (2) ------ Large Storage Unit Improved Terrain Scanner > --- WEAPON (2) ------- Medium Laser Light Assault Rifle > --- INVENTORY (15) --- Light Ion Engine Light Ion Engine Hacking Suite EM Pulse Gun Light Assault Rifle Mining Laser Peak State ------------ > --- POWER ------------ Ion Engine > --- PROPULSION ------- Light Treads Light Treads > --- UTILITY ---------- Large Storage Unit Improved Terrain Scanner > --- WEAPON ----------- Light Assault Rifle Light Assault Rifle > --- INVENTORY -------- Light Ion Engine Light Ion Engine Light Ion Engine Light Ion Engine Hacking Suite EM Pulse Gun Medium Laser Grenade Launcher [Rating: 10] Favorites ----------- Power Ion Engine Engine Ion Engine Propulsion Light Treads Treads Light Treads Utility Improved Terrain Scanner Device Improved Terrain Scanner Storage Large Storage Unit Weapon Light Assault Rifle Energy Gun EM Pulse Gun Ballistic Gun Light Assault Rifle Launcher Grenade Launcher Build | -11 -10 -10 ------- Run | Yrd Mat Min Slots Evolved . | . . . Power . | . . . Propulsion . | . . . Utility . | . . . Weapon . | . . . Parts Attached 17 | 9 1 7 Power 4 | 2 . 2 Engine 4 | 2 . 2 Core . | . . . Reactor . | . . . Propulsion 2 | 2 . . Treads 2 | 2 . . Leg . | . . . Wheel . | . . . Hover . | . . . Flight . | . . . Utility 3 | 2 1 . Device 1 | 1 . . Storage 2 | 1 1 . Processor . | . . . Hackware . | . . . Protection . | . . . Artifact . | . . . Weapon 8 | 3 . 5 Energy Gun 2 | 1 . 1 Energy Cannon . | . . . Ballistic Gun 4 | 2 . 2 Ballistic Cannon . | . . . Launcher 2 | . . 2 Special Weapon . | . . . Impact Weapon . | . . . Slashing Weapon . | . . . Piercing Weapon . | . . . Special Melee Weapon . | . . . Unidentified Prototypes . | . . . Parts Lost 6 | . . 6 Power 3 | . . 3 Propulsion 2 | . . 2 Utility . | . . . Weapon 1 | . . 1 Highest Loss Streak 6 | . . 6 To Critical Strikes . | . . . Average Slot Usage (%) 98 | . 100 94 Engine 13 | . 14 11 Treads 27 | . 28 25 Device 14 | . 14 14 Storage 14 | . 14 14 Energy Gun 1 | . . 3 Ballistic Gun 25 | . 28 20 Launcher 1 | . . 3 Naked Turns . | . . . Heaviest Build 30 | 13 28 30 Greatest Support 40 | 40 40 40 Greatest Overweight (x) . | . . . Average Overweight (x) . | . . . Largest Inventory Capacity 15 | 8 15 15 Average Capacity 12 | 7 14 15 Most Carried 9 | 4 9 9 Average Carried 5 | 1 5 8 Final Capacity 15 | 8 15 15 Final Carried 9 | 4 9 6 Class Distribution -------------------- 100% | Mutant Dominant Class ---------------- Mutant | -10/Materials Mutant | -10/Mines Resources | -11 -10 -10 ----------- Run | Yrd Mat Min Matter Collected 318 | 304 14 . Remotely . | . . . Salvage Created 235 | 127 50 58 Parts 15 | 11 4 . Haulers Intercepted . | . . . Recyclers Shooed . | . . . Parts Field Recycled . | . . . Retrieved Matter . | . . . Parts Self-Destructed . | . . . Prevented . | . . . Kills | -11 -10 -10 ------- Run | Yrd Mat Min Combat Hostiles Destroyed 8 | . 1 7 Guns 3 | . 1 2 AOE 5 | . . 5 Classes Destroyed 5 | 2 2 1 Tunneler 2 | 2 . . Recycler 1 | 1 . . Operator 1 | . 1 . Grunt 1 | . 1 . Assembled 7 | . . 7 Best Kill Streak 4 | 3 1 4 Combat Bots Only 4 | . 1 4 Max Kills in Single Turn 3 | 1 1 3 Gunslinging . | . . . Exploded 3 | . . 3 Melee . | . . . Uniques/NPCs Destroyed . | . . . Combat | -11 -10 -10 -------- Run | Yrd Mat Min Hostile Shots Fired 81 | . 3 78 Missed 22 | . 2 20 Damage Taken 986 | . 10 976 Core 266 | . . 266 Absorbed by Shields . | . . . Core Remaining (%) 100 | 100 . . Volleys Fired 44 | 7 15 22 Largest 2 | 2 2 2 Hottest 70 | 40 40 70 Shots Fired 81 | 14 30 37 Gun 76 | 14 30 32 Cannon . | . . . Launcher 5 | . . 5 Special . | . . . Kinetic 68 | 14 30 24 Thermal 8 | . . 8 Explosive 5 | . . 5 Electromagnetic . | . . . Robot Hit Streak 7 | 6 7 7 Robot Miss Streak 4 | 1 4 4 Penetration Max . | . . . Secondary Targets 2 | . . 2 Max Gunslinging Chain 1 | . . 1 Shots Hit Robots 45 | 10 15 20 Core Hits 30 | 6 7 17 Critical Kills . | . . . Critical Parts Destroyed . | . . . Critical Strikes . | . . . Melee Attacks . | . . . Impact . | . . . Slashing . | . . . Piercing . | . . . Sneak Attacks . | . . . Combat Hostiles . | . . . Follow-up Attacks . | . . . Damage Inflicted 654 | 85 118 451 Guns 380 | 85 118 177 Cannons . | . . . Explosions 274 | . . 274 Melee . | . . . Ramming . | . . . Kinetic 315 | 85 118 112 Thermal 65 | . . 65 Explosive 274 | . . 274 Electromagnetic . | . . . Impact . | . . . Slashing . | . . . Piercing . | . . . Highest Corruption 1 | . . 1 Average Corruption 1 | . . 1 Corruption Purged . | . . . Corruption Blocked . | . . . Overload Shots . | . . . Overflow Damage 4 | . . 4 Projectiles . | . . . Explosions 4 | . . 4 Melee . | . . . Knockbacks . | . . . Impact . | . . . Kinetic . | . . . Secondary . | . . . Self-Inflicted Damage 26 | . . 26 Shots 1 | . . 1 Rammed . | . . . Targets Rammed . | . . . Kicked . | . . . Crushed . | . . . Highest Temperature 70 | . . 70 Average Temperature 34 | . . 34 Received Heat Transfer 26 | . 6 20 Siege Activations . | . . . Robots Corrupted . | . . . Combat Hostiles . | . . . Parts Fried . | . . . Impact Corruptions . | . . . Robots Melted . | . . . Combat Hostiles . | . . . Parts Melted . | . . . Heat Transferred 185 | . . 185 Parts Sabotaged . | . . . Parts Stolen . | . . . Parts Stripped . | . . . Power Chain Reactions . | . . . Alert | -11 -10 -10 ------- Run | Yrd Mat Min Peak Influence 89 | 15 89 34 Initial 34 | . 9 34 Average 27 | 5 38 17 Maximum Alert Level . | . . . Low Security (%) 100 | 100 100 100 Level 1 . | . . . Level 2 . | . . . Level 3 . | . . . Level 4 . | . . . Level 5 . | . . . High Security . | . . . Max Security . | . . . Squads Dispatched 2 | . 2 . Investigation 1 | . 1 . Extermination . | . . . Reinforcement 1 | . 1 . Assault . | . . . Garrison . | . . . Intercept . | . . . Searches Triggered . | . . . Construction Impeded . | . . . Haulers Reinforced . | . . . Active Scanning Responses . | . . . Cargo Convoy Interrupts . | . . . Stealth | -11 -10 -10 --------- Run | Yrd Mat Min Distress Signals . | . . . Communications Jammed . | . . . Distress Signals . | . . . Times Spotted 24 | . 5 19 Peak Tracking Total 8 | . 2 8 Tactical Retreats . | . . . Traps | -11 -10 -10 ------- Run | Yrd Mat Min Traps Triggered 1 | . 1 . Indirectly . | . . . Trap Hack Attempts . | . . . Triggered . | . . . Disarmed . | . . . Reprogrammed . | . . . Reused . | . . . Traps Extracted . | . . . Installed . | . . . Triggered . | . . . Machines | -11 -10 -10 ---------- Run | Yrd Mat Min Machines Disabled . | . . . Max in Single Turn . | . . . Machines Repaired . | . . . Machines Dismantled . | . . . Machines Sabotaged . | . . . Overloaded Fab Kills . | . . . Hacking | -11 -10 -10 --------- Run | Yrd Mat Min Machines Accessed 1 | . 1 . Terminals 1 | . 1 . Fabricators . | . . . Repair Stations . | . . . Recycling Units . | . . . Scanalyzers . | . . . Garrison Access . | . . . Total Hacks 2 | . 2 . Successful 1 | . 1 . Failed 1 | . 1 . Catastrophic . | . . . Database Lockouts . | . . . Manual 3 | . 3 . Terminals 2 | . 2 . Fabricators . | . . . Repair Stations . | . . . Recycling Units . | . . . Scanalyzers . | . . . Garrison Access . | . . . Terminal Hacks . | . . . Fabricator Hacks . | . . . Repair Station Hacks . | . . . Recycling Unit Hacks . | . . . Scanalyzer . | . . . Garrison Access Hacks . | . . . Unauthorized Hacks 1 | . 1 . Terminals 1 | . 1 . Botnet 1 | . 1 . Fabricators . | . . . Repair Stations . | . . . Recycling Units . | . . . Scanalyzers . | . . . Garrison Access . | . . . Data Cores Recovered . | . . . Used . | . . . Hacking Detections . | . . . Full Trace Events . | . . . Feedback Events . | . . . Feedback Blocked . | . . . Robot Schematics Acquired . | . . . Robots Built . | . . . Authchips . | . . . Time . | . . . Total Robot Build Rating . | . . . Part Schematics Acquired . | . . . Parts Built . | . . . Authchips . | . . . Time . | . . . Total Part Build Rating . | . . . Parts Repaired . | . . . Time . | . . . Parts Recycled . | . . . Recycled Matter . | . . . Retrieved Matter . | . . . Retrieved Components . | . . . Parts Scanalyzed . | . . . Part Schematics Acquired . | . . . Parts Damaged . | . . . Bothacking | -11 -10 -10 ------------ Run | Yrd Mat Min Used RIF Installer . | . . . Robots Hacked . | . . . Non-combat . | . . . Combat . | . . . Robot Hacks Applied . | . . . Relay Couplers Released . | . . . Fabnet Peak Effective % . | . . . Robots Rewired . | . . . Allies Hacked . | . . . Hacks Repelled . | . . . Allies | -11 -10 -10 -------- Run | Yrd Mat Min Total Allies 3 | . . 3 Largest Group 3 | . . 3 Highest-Rated Group 40 | . . 40 Highest-Rated Ally 16 | . . 16 Total Orders . | . . . Ally Attacks 22 | . . 22 Total Damage 163 | . . 163 Kills 3 | . . 3 Allies Corrupted . | . . . Allies Melted . | . . . Intel | -11 -10 -10 ------- Run | Yrd Mat Min Robot Analysis Total . | . . . Derelict Logs Recovered . | . . . Drone Launches . | . . . Drone Recoveries . | . . . Exploration | -11 -10 -10 ------------- Run | Yrd Mat Min Turns Passed 531 | 120 301 110 Spaces Moved 245 | 56 160 29 Core 3 | 3 . . Treads 242 | 53 160 29 Legs . | . . . Wheels . | . . . Hover . | . . . Flight . | . . . Fastest Speed 50 | 50 160 160 Average Speed 158 | 154 160 160 Slowest Speed 160 | 160 160 160 Overloaded Moves . | . . . Propulsion Burnouts . | . . . Robots Hopped . | . . . Cave-ins Triggered . | . . . Exploration Rate (%) 15 | 4 28 13 Regions Visited 2 Branch Regions 1 Pre-discovered Areas . | . . . Known Exits Taken . | . . . Unknown Exits Taken 2 | 1 1 . Scrap Searched . | . . . Spaces Dug 5 | . . 5 Terrain Destroyed 27 | . . 27 Melee . | . . . Projectile . | . . . AOE 27 | . . 27 Terrain Rammed . | . . . Walls Destroyed . | . . . Machines Disabled . | . . . Actions | -11 -10 -10 --------- Run | Yrd Mat Min Total 313 | 74 181 58 Wait . | . . . Move 243 | 55 159 29 Hop . | . . . Pick Up 8 | 3 5 . Fast Attach 7 | 7 . . Attach 3 | . . 3 Detach . | . . . Swap 7 | 2 1 4 Drop 1 | . 1 . Fire 44 | 7 15 22 Melee . | . . . Ram . | . . . Kick . | . . . Crush . | . . . Escape Stasis . | . . . Rewire . | . . . Trap . | . . . Miscellaneous . | . . . Route ------- -11/Scrapyard -10/Materials -10/Mines History --------- Turn | Location | Event 14 | -11/Scrapyard | Discovered new exit (range 15) 121 | -11/Scrapyard | Entered Materials 314 | -10/Materials | Build established: Mutant 384 | -10/Materials | Discovered new exit (range 13) 422 | -10/Materials | Entered Mines 427 | -10/Mines | Assembled infested the area 429 | -10/Mines | Assisted by bots powering up and referring to "LRC-V3" 509 | -10/Mines | Core integrity fell below 50% 518 | -10/Mines | Core integrity fell below 20% 519 | -10/Mines | Lost 3 allies 532 | -10/Mines | Destroyed by as-53002 with Assembled Heavy Rifle Last Messages --------------- 00494_ The unstable cave ceiling collapses. 00498_ Ion Engine destroyed. 00500_ as-15510 destroyed. 00500_ Grenade Launcher destroyed. 00516_ The unstable cave ceiling collapses. 00517_ Lgt. Ion Engine destroyed. 00517_ Lgt. Treads destroyed. 00517_ System corrupted by crushing effect (+1). 00518_ The unstable cave ceiling collapses. 00518_ as-11625 destroyed. 00518_ Switching to secondary target: as-53002. 00523_ The unstable cave ceiling collapses. 00525_ as-62717 destroyed. 00525_ Switching to secondary target: as-85676. 00527_ The unstable cave ceiling collapses. 00529_ U-05 Engineer lays Concrete. 00530_ Lgt. Ion Engine destroyed. 00530_ U-05 Engineer lays Concrete. 00531_ Lgt. Treads destroyed. 00532_ The unstable cave ceiling collapses. Map ----- +----------------------------------------------------+ | ?????????????????????????#??????????????????? | | ??????????????#?????????????????????????????? | | ????????????????????????????????????????????? | | ????????????????????????????????????????????? | | ????????????????????????????????????????????? | | ????????????????? ???????? ?????????????????? | | ????? ??????????????????????????????????????? | | ????????????????????????????????????????????? | | ????????????#####???????????????????????????? | | ????????????# #????#??????????????????????? | | ??????????### #????#? ????????????????????? | | ?????????## ##?????? ???????????????????? | | ???????#?# #?????? ????????????????? | | ????????## #????? ?????????????? | | ???# ?### ##????? # #????????????? | | ???# ## ##?????? ##????????????? | | ???# ##?????## #a$ #????????????? | | ???# ####??## %aa ##???????????? | | ?#?####### ######## #????????????? | | ???#?????# #### ##???????????? | | ??????#??# ## # # #???????????? | | ?????????# ## ! ##??????????? | | ?????????# |! % ]% #??????????? | | ?????????# ## [ %!% =%* #??????????? | | ??????#??# #?# = = % =*%u #???????????? | | ?????#?? ?# * @ # #??????????? | | ??????# """" ?### ###?? ? ?????????????? | | ??????# """" ???#### #???????????????????? | | ??????# """" #?????# ###???????????????????? | | ??????# #?????## #?????????????????????? | | ????#?#??? ##????#??k#?????????????????????? | | ????????#? ????????#?$#???????????#?????????? | | ?????????? ?????????? ##?#??????????????????? | | ????????????????????? #?????????????????????? | | ?????#?????? ??#????? #??????????#??????????? | | ???????????????????#?$#?????? ??????????????? | | ???????????##???????? ?????????????????????? | | ????????????? ? ???#?? ?????????????????????? | | ???????????#??????????#?????????????????????? | | ????????????????????????????????????????????? | | ????????????????? ?#????????????????????????? | | ????????????????????????????????????????????? | | ????????????????????????????????????????????? | | ????????????????????????????????????????????? | | ????????????????????????????????????????????? | | ????????????????????????????????????????????? | | ????????????????????????????????????????????? | | ????????????????????????????????????????????? | | ????????????????????????????????????????????? | | ????????????????????????????????????????????? | +----------------------------------------------------+ Best States ------------- Heat Dissipation 25 Energy Generation 10 Energy Capacity 250 Matter Stores 300 Matter Capacity 300 Sight Range 16 Terrain Scan Range 16 Terrain Scan Density 10 Evasion (%) 40 Recoil Reduction 2 Item Schematics ----------------- None Robot Schematics ------------------ None Fabricated ------------ Nothing Alien Tech Used ----------------- None Achievements -------------- None Challenges ------------ None Game ------ Seed DimensionalStorageDiverter Manual? 0 Play Time 00:06:35 Cumulative 149.9 hours Start 2024.05.03 @ 17:42:20 End 2024.05.03 @ 17:47:53 Sessions 1 Manual Loads 0 Difficulty Rogue Special Mode None Game No. 169 Rogue 169 Adventurer 0 Explorer 0 Win Type - Total 0 Types 0/0/0/0/0/0/0/0/0 Lore% 33 Gallery% 59 Achievement% 41 Wizard Run 0 Options --------- Layout 1 ASCII 0 Keyboard 1 Movement Vi Keybinds 0 Fullscreen 1 Font 24/Smallcaps Map View 50x35 Zoom Use 0% Tactical HUD 1 Map Filters NONE Filters NONE Steam 1 RUN: a10e40a1-3355-4f9c-8475-f9d6bd7ef05a